bitfinex/quotes_ETHUSD_20241129
["timestamp","ask_amount","ask_price","bid_price","bid_amount"]
[1732890108262,0.08654495,3614.1,3613.4,2.76742]
[1732890108445,0.85304495,3614.2,3613.4,0.553504]
[1732890108645,0.7665,3614.2,3613.9,2.76709]
[1732890109477,0.7665,3614.2,3613.1,0.55]
[1732890109782,0.7665,3614.2,3613.8,2.7671]
[1732890110150,0.7665,3614.2,3614.0,2.76696]
[1732890112159,0.7665,3614.2,3613.8,2.7671]
[1732890112561,0.7665,3614.2,3613.9,2.76708]
[1732890113235,0.7665,3614.2,3613.8,2.76714]
[1732890113433,0.7665,3614.2,3613.4,3.0]
[1732890113663,0.7665,3614.2,3613.7,5.76719]
[1732890113981,2.76708,3614.0,3613.3,2.76754]
[1732890114286,3.54939,3613.9,3613.3,2.76754]
[1732890114452,0.7823,3613.9,3613.3,2.76754]
[1732890114635,0.7823,3613.9,3613.3,2.7675]
[1732890115062,0.8688488,3613.9,3613.4,2.76746]
[1732890115236,0.7823,3613.9,3613.4,2.76746]
[1732890115433,0.86884859,3613.9,3613.4,2.76746]
[1732890116339,0.86884799,3613.9,3613.4,2.76746]
[1732890116639,0.86884799,3613.9,3613.5,2.76733]
[1732890116987,0.7823,3613.9,3613.5,2.76733]
[1732890117534,0.7823,3613.9,3613.6,2.76727]
[1732890117740,0.7823,3613.9,3613.4,2.79509114]
[1732890118184,0.7823,3613.9,3613.4,2.76742]
[1732890118563,0.86884799,3613.9,3613.4,2.76742]
[1732890119753,0.7823,3613.9,3613.4,2.76742]
[1732890120783,0.7823,3613.9,3613.5,2.76738]
[1732890121147,0.7823,3613.9,3613.6,2.76729]
[1732890121690,0.88244799,3614.2,3613.9,2.76704]
[1732890121851,0.7959,3614.2,3614.0,2.76695]
[1732890122049,0.7959,3614.2,3614.1,2.76694]
[1732890122280,0.8054,3614.6,3614.3,2.76678]
[1732890122443,0.8054,3614.6,3614.5,2.76663]
[1732890123462,0.9591706,3614.9,3614.6,2.76648]
[1732890123669,0.9591706,3614.9,3614.5,2.76663]
[1732890123878,0.9591706,3614.9,3614.6,2.76655]
[1732890124897,0.9591706,3614.9,3614.5,2.76663]
[1732890125049,0.9591706,3614.9,3614.8,2.7664]
[1732890125251,0.9591706,3614.9,3614.6,2.76654]
[1732890125499,0.9591706,3614.9,3614.8,2.7664]
[1732890127198,0.1537706,3614.9,3614.8,2.7664]
[1732890128256,0.1537706,3614.9,3614.6,2.76649]
[1732890128588,0.1537706,3614.9,3614.8,2.7664]
[1732890129100,0.1537706,3614.9,3614.6,2.76649]
[1732890129300,0.7827,3614.8,3614.6,2.76654]
[1732890129830,0.1537706,3614.9,3614.8,2.7664]
[1732890130884,0.1537706,3614.9,3614.2,5.76685]
[1732890131115,0.7768,3614.8,3614.3,2.76676]
[1732890131482,0.7768,3614.8,3614.2,3.0]
[1732890131697,2.76649,3614.7,3614.0,2.76697]
[1732890131895,3.54325,3614.8,3614.1,2.76688]
[1732890132122,0.08652974,3614.7,3614.1,2.76688]
[1732890132501,0.7832,3614.4,3613.6,2.76732]
[1732890132723,2.76687,3614.2,3613.6,2.76732]
[1732890132889,0.7832,3614.1,3613.6,2.76732]
[1732890133089,0.7832,3614.1,3613.4,2.76746]
[1732890133090,3.55018,3614.1,3613.4,2.76746]
[1732890133291,2.76703,3614.0,3613.4,2.76746]
[1732890133496,2.76703,3614.0,3613.5,2.76739]
[1732890133788,2.76718,3613.8,3613.0,2.76778]
[1732890134020,2.76718,3613.8,3613.2,2.76759]
[1732890134222,2.76709,3613.9,3613.4,2.76746]
[1732890134423,0.8054,3613.8,3613.2,2.76759]
[1732890134592,0.8054,3613.8,3613.0,2.76775]
[1732890134593,0.8054,3613.8,3613.3,2.76754]
[1732890134802,3.57257,3613.8,3613.3,2.76754]
[1732890135340,3.57257,3613.8,3613.1,5.76766]
[1732890135481,3.57257,3613.8,3613.1,2.76766]
[1732890135678,3.57257,3613.8,3612.3,0.56752431]
[1732890135679,0.7892,3613.7,3612.3,0.56752431]
[1732890135940,3.55699,3613.0,3612.3,2.76826]
[1732890136228,3.55699,3613.0,3611.4,2.769]
[1732890136229,2.7681,3612.6,3611.5,0.7782]
[1732890136397,2.7681,3612.6,3612.0,3.33172836]
[1732890136898,2.76802,3612.7,3612.1,2.7684]
[1732890137498,0.7892,3613.0,3612.0,3.0]
[1732890137713,2.76759,3613.3,3612.0,3.0]
[1732890137714,2.76821,3612.5,3612.0,3.0]
[1732890138240,2.76821,3612.5,3611.9,2.7686]
[1732890138740,2.7791822,3612.5,3611.9,2.7686]
[1732890139412,0.0109722,3612.5,3612.1,2.76846]
[1732890139614,0.0109722,3612.5,3612.3,2.76829]
[1732890139817,0.0109722,3612.5,3612.4,2.79591939]
[1732890140015,0.0109722,3612.5,3611.9,2.76856]
[1732890140205,2.7791322,3612.5,3612.0,3.0]
[1732890140707,2.7791322,3612.5,3611.8,3.0]
[1732890141028,2.76853,3612.1,3611.5,2.76891]
[1732890141234,0.8054,3612.3,3610.9,3.53695]
[1732890141389,0.8054,3611.8,3611.1,2.76923]
[1732890141591,3.5850722,3611.8,3611.2,2.76915]
[1732890141799,0.8163722,3611.8,3611.2,2.76915]
[1732890142086,0.8163722,3611.8,3611.4,2.769]
[1732890142291,0.8163722,3611.8,3611.2,2.76914]
[1732890142533,3.5850822,3611.8,3611.1,2.76923]
[1732890142693,2.76888,3611.6,3610.8,2.7694]
[1732890143042,0.8054,3611.5,3610.9,2.76937]
[1732890143590,0.8054,3611.5,3610.8,0.63587]
[1732890143794,2.76917,3611.2,3610.5,2.76968]
[1732890144210,2.76902,3611.4,3610.1,3.60169]
[1732890144420,2.76902,3611.4,3610.8,2.76945]
[1732890144636,2.76909,3611.3,3610.7,2.76951]
[1732890144902,2.76916,3611.2,3610.5,2.76966]
[1732890145145,0.8054,3611.1,3610.5,2.76966]
[1732890145346,0.8054,3611.1,3610.1,2.76994]
[1732890145644,0.8054,3610.9,3610.1,2.76994]
[1732890145848,2.76952,3610.8,3610.2,2.76992]
[1732890146442,2.71952,3610.8,3610.2,2.76992]
[1732890146809,2.71952,3610.8,3610.0,3.77003]
[1732890147047,0.8054,3610.9,3610.0,3.77003]
[1732890147353,3.57519,3610.4,3610.0,1.0]
[1732890147658,0.8054,3610.4,3610.0,1.0]
[1732890147820,2.76987,3610.3,3610.0,1.0]
[1732890148452,2.76994,3610.2,3610.0,1.0]
[1732890148627,2.77,3610.1,3610.0,1.0]
[1732890148813,2.76986,3610.3,3610.0,1.0]
[1732890149014,2.77,3610.1,3610.0,1.0]
[1732890149241,3.5743,3610.1,3610.0,1.0]
[1732890150205,0.8043,3610.1,3610.0,1.0]
[1732890150656,3.5743,3610.1,3610.0,1.0]
[1732890153124,0.8043,3610.1,3610.0,1.0]
[1732890156527,0.7529,3610.4,3610.2,2.76989]
[1732890156723,3.0,3611.2,3610.2,2.76989]
[1732890156724,0.7529,3611.0,3610.2,2.76989]
[1732890156927,3.52226,3611.0,3610.4,2.76976]
[1732890157255,2.76947,3610.8,3610.0,1.0]
[1732890157460,2.76947,3610.8,3610.1,2.76999]
[1732890158055,2.76964,3610.6,3610.0,1.0]
[1732890158267,2.76964,3610.6,3610.0,3.77008]
[1732890158825,2.76978,3610.4,3610.0,1.0]
[1732890159458,2.76964,3610.6,3610.0,3.77008]
[1732890159669,2.76964,3610.6,3610.0,1.0]
[1732890159976,2.76972,3610.5,3610.0,1.0]
[1732890160970,3.575,3610.7,3610.0,3.77003]
[1732890161182,2.76963,3610.6,3610.0,3.77003]
[1732890163375,3.5274,3610.1,3610.0,1.0]
[1732890164083,6.03991087,3610.1,3610.0,1.0]
[1732890165435,6.12656699,3610.1,3610.0,1.0]
[1732890166260,2.77131,3608.4,3607.5,2.77193]
[1732890166577,2.77131,3608.4,3607.8,2.77175]
[1732890166936,0.7544,3608.2,3607.7,2.77184]
[1732890167148,0.7544,3608.2,3607.8,2.77176]
[1732890167362,0.7544,3608.2,3607.6,2.77192]
[1732890167564,0.7544,3608.2,3607.8,2.77171]
[1732890167772,0.7544,3608.2,3607.6,2.77192]
[1732890167999,3.52593,3608.2,3607.6,2.77192]
[1732890168589,0.7544,3608.2,3607.5,2.772]
[1732890168798,0.7544,3608.2,3607.3,0.7963]
[1732890168953,2.77162,3608.0,3606.8,0.821]
[1732890169292,2.77162,3608.0,3607.4,2.77206]
[1732890169590,3.52587,3608.2,3607.3,2.77214]
[1732890169795,2.77162,3608.0,3607.3,2.77214]
[1732890170097,0.7987,3608.1,3607.4,2.772]
[1732890170254,3.57025,3608.1,3607.4,2.772]
[1732890170455,2.77163,3608.0,3606.9,0.359355]
[1732890170750,2.77163,3608.0,3607.3,2.77215]
[1732890172194,2.77163,3608.0,3607.4,2.77205]
[1732890172361,2.77163,3608.0,3606.5,3.7544]
[1732890172362,0.7987,3608.1,3607.6,2.77192]
[1732890173168,2.77169,3607.9,3607.3,2.77209]
[1732890173763,2.77162,3608.0,3607.4,2.77206]
[1732890174373,2.7717,3607.9,3607.2,2.77223]
[1732890174771,3.57024,3608.1,3607.4,2.77206]
[1732890175402,2.77166,3608.0,3606.8,3.55]
[1732890175608,2.77166,3608.0,3607.3,2.77208]
[1732890175826,2.77169,3607.9,3606.5,3.7544]
[1732890175957,2.77191,3607.7,3607.0,2.77237]
[1732890176362,0.8054,3607.6,3607.0,2.77237]
[1732890178905,0.8054,3607.6,3607.0,2.77233]
[1732890179213,0.8054,3608.1,3607.4,2.77202]
[1732890179514,0.8054,3608.1,3607.1,0.277233]
[1732890179879,0.8054,3608.1,3607.5,2.77193]
[1732890180080,2.77161,3608.0,3607.1,3.049493]
[1732890180278,0.8054,3608.1,3607.1,2.77226]
[1732890180512,0.8054,3608.1,3607.3,2.77209]
[1732890180672,2.77164,3608.0,3607.3,2.77209]
[1732890181071,0.8054,3608.1,3606.8,0.55]
[1732890181338,0.8054,3608.1,3607.8,2.77169]
[1732890181468,0.8054,3608.1,3607.9,2.77167]
[1732890181786,3.57657,3608.6,3608.0,2.7716]
[1732890183296,0.8054,3608.6,3608.2,2.77145]
[1732890183507,0.8054,3608.6,3608.2,2.77141]
[1732890184035,0.7961,3608.9,3608.2,0.554302]
[1732890184194,0.7961,3608.9,3608.6,2.77113]
[1732890184386,0.7961,3608.9,3608.4,2.77129]
[1732890184585,0.7961,3608.9,3608.3,2.77138]
[1732890184787,0.7961,3608.9,3608.5,2.77118]
[1732890185197,0.7961,3608.9,3608.3,2.77138]
[1732890185398,0.7961,3608.9,3608.4,2.77125]
[1732890185606,0.7961,3608.9,3608.5,2.77121]
[1732890186007,0.7961,3608.9,3608.2,2.77144]
[1732890186226,0.7961,3608.9,3608.3,2.77133]
[1732890186429,0.7961,3608.9,3608.4,2.77129]
[1732890186939,0.7961,3608.9,3608.3,2.77133]
[1732890186940,3.56709,3608.9,3608.3,2.77133]
[1732890187244,0.7502,3609.7,3608.3,0.554286]
[1732890187413,0.7502,3609.7,3609.0,2.77084]
[1732890187750,2.77039,3609.6,3609.0,2.77084]
[1732890187966,2.77051,3609.5,3608.8,2.77098]
[1732890188240,2.77051,3609.5,3608.9,2.77092]
[1732890188455,2.77039,3609.6,3608.3,0.55]
[1732890188456,2.77039,3609.6,3608.8,2.77093]
[1732890188620,2.77039,3609.6,3609.0,2.77083]
[1732890189113,2.77039,3609.6,3608.8,2.77093]
[1732890189114,2.77052,3609.5,3608.8,2.77093]
[1732890189301,2.77052,3609.5,3608.3,3.32134]
[1732890189499,2.77052,3609.5,3608.9,2.7709]
[1732890189744,3.52057,3609.7,3609.1,2.77075]
[1732890189915,2.85704889,3609.6,3609.1,2.77075]
[1732890190257,2.77039,3609.6,3608.9,2.7709]
[1732890190545,0.08665892,3609.5,3609.0,2.77078]
[1732890190755,0.83685892,3609.7,3609.0,2.77078]
[1732890191105,0.83685892,3609.7,3609.0,0.7967]
[1732890191305,0.7502,3609.7,3609.3,2.77061]
[1732890192008,0.7502,3609.7,3609.0,3.56754]
[1732890192219,3.52056,3609.7,3609.0,2.77084]
[1732890192548,0.08664961,3609.6,3608.5,0.55]
[1732890192850,2.77072,3609.2,3608.5,2.77121]
[1732890193348,2.77072,3609.2,3608.0,0.7515]
[1732890193349,0.7736,3608.8,3608.0,0.7515]
[1732890193580,0.7736,3608.8,3608.3,2.77137]
[1732890193780,0.86027147,3608.8,3608.3,2.77137]
[1732890194138,0.08667147,3608.7,3608.3,2.77137]
[1732890194337,0.08667147,3608.6,3608.1,2.77152]
[1732890194543,0.08667147,3608.5,3608.1,2.77152]
[1732890194758,0.08667147,3608.4,3608.1,2.77152]
[1732890194987,3.6833315,3608.8,3608.1,2.77152]
[1732890195143,2.77123,3608.5,3607.9,2.77168]
[1732890195344,0.08667701,3608.4,3607.9,2.77168]
[1732890195583,2.85800701,3608.4,3607.8,2.77176]
[1732890195891,2.85800701,3608.4,3607.7,0.7623]
[1732890196057,0.08667701,3608.3,3607.9,2.77169]
[1732890196261,0.08667701,3608.2,3607.9,2.77169]
[1732890196459,0.08667701,3608.1,3607.9,2.77169]
[1732890196662,0.1386715,3608.6,3607.7,0.7623]
[1732890196889,2.77147,3608.2,3607.4,3.60527]
[1732890197068,2.77169,3607.9,3607.3,2.77214]
[1732890197247,0.0866849,3607.8,3607.3,2.77214]
[1732890197447,0.0866849,3607.7,3607.3,2.77214]
[1732890197647,2.77169,3607.9,3607.3,2.77214]
[1732890197898,0.08669477,3607.8,3607.3,2.77214]
[1732890198106,0.08669477,3607.7,3607.3,2.77214]
[1732890198388,2.77169,3607.9,3607.3,2.77214]
[1732890198594,0.08669349,3607.8,3607.3,2.77214]
[1732890198750,0.08669415,3607.7,3607.3,2.77214]
[1732890198953,2.77169,3607.9,3607.3,2.77214]
[1732890199154,0.08669458,3607.8,3607.3,2.77214]
[1732890199388,0.08669458,3607.7,3606.9,2.77244]
[1732890199693,0.08669492,3607.6,3607.0,2.77236]
[1732890199895,0.08669699,3607.5,3607.0,2.77236]
[1732890200190,0.08669699,3607.6,3607.0,2.77231]
[1732890200398,0.08669699,3607.5,3607.0,2.77231]
[1732890200705,0.08669699,3607.5,3606.8,0.7709]
[1732890200706,3.53387,3607.5,3606.8,0.7709]
[1732890200882,2.77235,3607.1,3606.4,6.58968]
[1732890201127,3.53443,3606.7,3606.0,2.77309]
[1732890201325,2.7727,3606.6,3606.0,2.77315]
[1732890201495,3.53444,3606.7,3606.0,2.7731]
[1732890201938,0.08672427,3606.6,3606.0,2.7731]
[1732890202298,0.08672427,3606.6,3605.8,2.7733]
[1732890202599,3.53444,3606.7,3606.1,2.77307]
[1732890202794,3.53444,3606.7,3605.8,2.7733]
[1732890202999,3.53444,3606.7,3606.0,2.77315]
[1732890204217,3.53444,3606.7,3605.8,2.7733]
[1732890204397,3.53444,3606.7,3606.1,2.77306]
[1732890204601,0.7618,3606.7,3606.2,2.77293]
[1732890205641,3.53443,3606.7,3606.0,2.77312]
[1732890205947,3.53443,3606.7,3606.1,2.77307]
[1732890206445,0.7618,3606.7,3606.1,2.77307]
[1732890206643,3.53442,3606.7,3605.9,2.77321]
[1732890206946,3.53442,3606.7,3605.7,3.59028]
[1732890207444,2.77282,3606.5,3605.9,2.77322]
[1732890208022,2.77287,3606.4,3605.7,3.59028]
[1732890208245,2.77287,3606.4,3605.7,2.77338]
[1732890208562,2.77282,3606.5,3605.3,0.7961]
[1732890208767,2.77282,3606.5,3605.8,2.77325]
[1732890208952,2.77282,3606.5,3605.9,2.77321]
[1732890209355,0.7618,3606.7,3605.9,3.60303]
[1732890209741,0.7618,3606.7,3606.2,2.77299]
[1732890210954,0.7618,3606.7,3606.0,2.77309]
[1732890211130,2.7727,3606.6,3606.0,2.77309]
[1732890213493,2.7728,3606.5,3605.8,2.77328]
[1732890213968,2.7728,3606.5,3605.9,2.77322]
[1732890214664,2.77285,3606.4,3605.8,0.55]
[1732890214865,2.77294,3606.3,3605.8,0.55]
[1732890215047,2.77271,3606.6,3605.8,0.55]
[1732890215250,2.77282,3606.5,3605.8,3.32329]
[1732890215585,2.77285,3606.4,3605.8,3.32329]
[1732890216796,2.77285,3606.4,3605.8,0.55]
[1732890217395,2.77285,3606.4,3605.8,3.32328]
[1732890217810,2.77309,3606.1,3605.5,2.77351]
[1732890218097,2.77309,3606.1,3605.6,0.55]
[1732890218282,3.54177,3606.3,3605.6,2.77345]
[1732890218771,2.77301,3606.2,3605.6,2.77345]
[1732890218944,3.54173,3606.3,3605.7,2.77338]
[1732890219347,3.54173,3606.3,3605.7,2.77336]
[1732890220670,3.54173,3606.3,3605.7,2.77334]
[1732890221709,2.77302,3606.2,3605.7,0.55]
[1732890222018,2.77308,3606.1,3605.6,2.77343]
[1732890223566,0.7688,3606.3,3605.3,0.55]
[1732890223718,0.7771,3606.7,3606.3,2.77287]
[1732890224015,0.7771,3606.7,3606.2,2.77295]
[1732890224218,0.86382888,3606.7,3606.2,2.77295]
[1732890224513,0.86382888,3606.7,3606.1,3.59611]
[1732890224514,2.77272,3606.6,3606.1,0.8231]
[1732890224680,2.77272,3606.6,3606.1,0.55]
[1732890225081,2.77272,3606.6,3606.1,2.77305]
[1732890225415,0.0867265,3606.5,3606.1,2.77305]
[1732890225978,2.8594965,3606.5,3606.0,0.55]
[1732890226183,2.77277,3606.5,3606.0,0.55]
[1732890226523,0.08672804,3606.4,3606.0,0.55]
[1732890226681,0.08672804,3606.3,3606.0,0.55]
[1732890226881,0.08672804,3606.2,3606.0,0.55]
[1732890227073,2.91153486,3606.5,3606.0,0.55]
[1732890227314,0.22549333,3606.4,3606.0,0.55]
[1732890227521,0.08672847,3606.3,3606.0,0.55]
[1732890227728,0.08672847,3606.2,3606.1,2.77303]
[1732890229643,0.08672671,3606.2,3606.1,2.77303]
[1732890230044,0.08672671,3606.2,3606.0,3.32315]
[1732890230335,0.08672671,3606.1,3606.0,3.32315]
[1732890231011,0.22549259,3606.1,3606.0,3.32315]
[1732890231338,0.08672671,3606.1,3606.0,3.32315]
[1732890232332,0.13876676,3606.4,3606.0,3.32315]
[1732890232643,0.08672863,3606.3,3606.0,3.32315]
[1732890232939,0.08672902,3606.2,3606.0,3.32315]
[1732890233234,0.08672902,3606.1,3606.0,3.32315]
[1732890233597,2.91151574,3606.6,3606.0,3.32315]
[1732890233598,0.13876574,3606.5,3606.0,3.32315]
[1732890233797,0.08672811,3606.4,3606.1,2.77303]
[1732890234037,0.08672811,3606.3,3606.1,2.77303]
[1732890234346,0.08672811,3606.2,3606.1,2.77307]
[1732890234643,0.08672811,3606.2,3605.9,3.32316]
[1732890234853,2.91156483,3606.5,3605.9,3.32316]
[1732890235055,0.08672809,3606.4,3606.0,2.77311]
[1732890235216,0.08672809,3606.3,3606.2,2.77298]
[1732890235843,0.08672809,3606.3,3606.1,3.32307]
[1732890236040,0.08672809,3606.2,3606.1,3.32307]
[1732890236243,2.85975809,3606.2,3605.8,0.7973]
[1732890236412,2.77346,3605.6,3605.1,3.6019]
[1732890236618,2.77359,3605.5,3604.9,2.77395]
[1732890236955,0.84555089,3605.4,3604.8,2.77406]
[1732890237261,0.89760483,3605.4,3604.8,2.77406]
[1732890237415,0.7588,3605.4,3604.8,2.77406]
[1732890237613,0.13880483,3605.3,3604.8,2.77406]
[1732890238364,0.13880483,3605.5,3604.8,0.637638]
[1732890238530,0.8054,3605.7,3605.1,0.7838]
[1732890238737,0.8054,3605.7,3605.3,2.77367]
[1732890238944,0.94420483,3606.0,3605.6,2.77343]
[1732890239249,0.94420483,3606.3,3605.8,2.77329]
[1732890239456,0.13880483,3606.2,3605.8,2.77329]
[1732890239622,0.8054,3606.3,3605.8,2.77329]
[1732890239824,0.94417994,3606.3,3605.8,2.77329]
[1732890240267,0.8054,3606.3,3605.8,2.77329]
[1732890240441,0.94417994,3606.3,3605.9,2.77318]
[1732890240626,0.94417994,3606.3,3605.8,2.77326]
[1732890240627,0.8054,3606.3,3605.8,2.77326]
[1732890241056,0.8054,3606.3,3605.8,2.77323]
[1732890241972,0.8054,3606.3,3605.6,2.77344]
[1732890241973,3.71711994,3606.3,3605.7,2.77337]
[1732890242176,0.8054,3606.3,3605.7,2.77337]
[1732890242766,0.94417994,3606.3,3605.8,2.77326]
[1732890242946,0.8054,3606.3,3605.8,2.77326]
[1732890243146,0.94417994,3606.3,3605.8,2.77326]
[1732890243365,0.8054,3606.3,3605.8,2.77326]
[1732890243876,0.8054,3606.3,3606.0,2.77312]
[1732890244049,0.8054,3606.3,3605.8,2.77326]
[1732890244585,0.8054,3606.3,3605.9,2.77323]
[1732890246845,0.94417475,3606.3,3605.4,2.77361]
[1732890247150,0.94417475,3606.3,3604.3,5.28692087]
[1732890247151,3.52861,3605.6,3605.0,2.77386]
[1732890247358,0.7551,3605.6,3605.1,2.77377]
[1732890247981,0.7551,3605.6,3605.3,2.77367]
[1732890248367,0.7551,3605.6,3605.1,5.54756]
[1732890248678,0.7551,3605.6,3605.3,2.77369]
[1732890249035,0.7551,3605.6,3604.6,2.77417]
[1732890249036,0.91647475,3605.9,3605.7,2.77334]
[1732890249276,0.7777,3605.9,3605.7,2.77334]
[1732890249635,0.91648834,3606.2,3605.8,2.77329]
[1732890249854,0.91648834,3606.2,3605.7,2.77334]
[1732890250053,0.7777,3606.2,3605.7,2.77334]
[1732890250293,0.91648834,3606.2,3605.5,2.77353]
[1732890250499,2.77313,3606.1,3605.3,3.60117]
[1732890250792,2.77313,3606.1,3605.5,2.77349]
[1732890251670,0.91648834,3606.2,3605.7,2.77337]
[1732890251862,0.7777,3606.2,3605.7,2.77337]
[1732890252795,3.5507,3606.2,3605.7,2.77337]
[1732890253559,0.7777,3606.2,3605.7,2.77337]
[1732890253784,3.5507,3606.2,3605.7,2.77337]
[1732890254058,2.77315,3606.0,3605.5,2.77352]
[1732890254705,3.68953834,3606.2,3605.5,2.77352]
[1732890255006,2.77321,3606.0,3605.3,2.77367]
[1732890255304,2.77341,3605.7,3605.1,2.77384]
[1732890255475,0.799,3605.6,3604.9,2.77395]
[1732890255673,2.77363,3605.4,3604.9,2.77395]
[1732890255889,2.77354,3605.5,3604.9,2.77395]
[1732890256453,2.77364,3605.4,3604.9,2.77395]
[1732890256655,2.77374,3605.3,3604.7,2.77414]
[1732890256862,2.77374,3605.3,3604.6,0.7782]
[1732890257158,0.799,3605.6,3604.9,2.77395]
[1732890257370,3.57248,3605.6,3605.0,2.77389]
[1732890257575,3.57248,3605.6,3604.9,2.77395]
[1732890258114,3.57248,3605.6,3604.7,0.55]
[1732890258115,3.57251,3605.6,3604.7,0.55]
[1732890258328,3.57251,3605.6,3604.9,2.77394]
[1732890258621,2.77361,3605.4,3604.8,2.77402]
[1732890259013,2.77361,3605.4,3604.9,2.77399]
[1732890259402,2.77361,3605.4,3604.8,2.77403]
[1732890259603,2.77361,3605.4,3604.7,0.55]
[1732890259920,2.77356,3605.5,3604.9,2.77393]
[1732890260073,0.799,3605.6,3605.0,2.77391]
[1732890260421,0.1388072,3605.7,3605.5,2.77349]
[1732890260715,0.1388072,3606.1,3605.4,2.77361]
[1732890260918,2.77326,3605.9,3605.3,0.7631]
[1732890261273,2.77326,3605.9,3605.3,3.53672]
[1732890261475,2.77316,3606.0,3605.4,2.77356]
[1732890262612,0.13879179,3606.1,3604.7,6.75693]
[1732890262613,0.13879179,3606.1,3605.1,2.77377]
[1732890262777,2.77335,3605.8,3605.1,2.77377]
[1732890262984,2.77343,3605.7,3605.1,2.77377]
[1732890263172,3.52608,3606.0,3605.2,2.77376]
[1732890263374,0.13880071,3605.7,3605.2,2.77376]
[1732890263586,2.77335,3605.8,3605.0,2.77391]
[1732890263784,2.77339,3605.7,3605.0,2.77391]
[1732890263985,2.91219071,3605.7,3605.0,5.54777]
[1732890264471,2.91219071,3605.7,3605.0,2.77386]
[1732890265636,2.77353,3605.6,3604.9,3.0]
[1732890265937,0.778,3605.5,3604.9,2.77395]
[1732890266086,2.77362,3605.4,3604.9,2.77395]
[1732890267207,0.91680058,3605.5,3605.0,2.77391]
[1732890267407,0.778,3605.5,3605.0,2.77391]
[1732890267925,0.778,3605.5,3605.1,2.77384]
[1732890268129,0.778,3605.5,3605.0,2.77391]
[1732890268429,0.778,3605.5,3604.8,3.32405]
[1732890268583,0.778,3605.5,3605.0,2.77389]
[1732890271347,3.55154,3605.5,3605.0,2.77389]
[1732890271687,0.778,3605.5,3605.0,2.77389]
[1732890272002,0.778,3605.5,3605.1,2.77384]
[1732890272225,0.778,3605.5,3605.0,2.77389]
[1732890272902,0.778,3605.5,3604.8,0.957775]
[1732890273087,0.778,3605.5,3605.0,2.77386]
[1732890274139,3.55155,3605.5,3604.9,2.774]
[1732890274321,3.69035515,3605.5,3604.9,2.774]
[1732890274532,3.69035515,3605.5,3605.0,2.77392]
[1732890274726,3.55155,3605.5,3605.0,2.77392]
[1732890275126,3.69035515,3605.5,3605.0,2.77392]
[1732890275308,0.13880515,3605.7,3605.3,2.77362]
[1732890275515,0.13880515,3605.8,3605.3,3.55162]
[1732890275708,0.13880515,3605.7,3605.5,2.77354]
[1732890275922,0.07291132,3606.1,3605.4,0.02773457]
[1732890276210,0.17346883,3606.4,3605.9,0.8181]
[1732890276358,0.13876996,3606.3,3605.9,0.8181]
[1732890276562,0.13876996,3606.2,3605.9,3.59128]
[1732890276727,2.77278,3606.5,3605.9,3.59128]
[1732890276932,2.77297,3606.3,3605.7,2.77335]
[1732890277122,0.13877219,3606.2,3605.7,2.77333]
[1732890277325,0.13877289,3606.2,3605.8,2.7733]
[1732890278059,0.13877447,3606.2,3605.8,2.7733]
[1732890278728,0.13877447,3606.4,3605.8,3.26409491]
[1732890278931,0.13877447,3606.3,3605.9,2.77322]
[1732890279242,0.13877447,3606.4,3605.9,2.77322]
[1732890279978,0.13877447,3606.3,3605.9,2.77322]
[1732890280142,0.13877447,3606.4,3605.9,2.77322]
[1732890280477,0.13877447,3606.3,3605.9,2.77322]
[1732890280687,0.13877447,3606.4,3605.9,2.77322]
[1732890281540,0.13877447,3606.4,3606.0,2.77315]
[1732890282752,0.13877447,3606.4,3605.8,2.7733]
[1732890283054,0.13877447,3606.4,3605.9,2.77323]
[1732890283252,2.91163447,3606.4,3605.8,2.7733]
[1732890283589,2.77286,3606.4,3605.8,2.7733]
[1732890283799,2.91155359,3606.5,3605.9,2.77321]
[1732890284100,2.77312,3606.1,3605.4,2.77357]
[1732890284247,2.7732,3606.0,3605.3,2.77363]
[1732890284452,2.91197359,3606.0,3605.3,2.77363]
[1732890284769,2.91197359,3606.0,3605.4,2.7736]
[1732890285263,0.13877359,3606.0,3605.4,2.7736]
[1732890285469,2.91195359,3606.0,3605.4,2.7736]
[1732890285859,2.77318,3606.0,3605.2,0.55]
[1732890286066,0.8054,3605.7,3605.3,2.77366]
[1732890286363,0.8054,3605.7,3604.8,1.229175]
[1732890286568,0.8054,3605.7,3604.9,2.774]
[1732890286766,0.94417359,3605.7,3604.9,2.774]
[1732890287073,2.77346,3605.6,3605.0,2.77386]
[1732890287489,0.94417359,3605.7,3604.8,0.8214]
[1732890287655,2.91229359,3605.6,3604.9,2.77395]
[1732890288102,0.13877359,3605.5,3605.0,2.77388]
[1732890288272,0.13877359,3605.6,3604.9,2.77395]
[1732890288473,0.13877359,3605.6,3604.9,3.051385]
[1732890288720,0.13877359,3605.5,3605.1,2.77383]
[1732890288869,2.91225359,3605.6,3605.1,2.77383]
[1732890289308,0.13877359,3605.5,3605.1,2.77383]
[1732890289459,2.91224359,3605.6,3605.1,2.77383]
[1732890289772,0.13877359,3605.5,3605.1,2.77383]
[1732890289969,2.91224359,3605.6,3605.1,2.77383]
[1732890290168,2.77347,3605.6,3605.1,2.77383]
[1732890290373,2.91224359,3605.6,3605.1,2.77383]
[1732890290597,2.91224359,3605.6,3604.9,2.77393]
[1732890291096,2.91224359,3605.6,3605.0,2.77387]
[1732890291258,2.77347,3605.6,3605.0,2.77387]
[1732890291662,2.77347,3605.6,3604.8,3.32401]
[1732890291896,2.77362,3605.4,3604.8,0.55]
[1732890292196,2.91231359,3605.5,3604.8,2.77401]